fUST/lending_fUST_20250313
["ID","MTS","AMOUNT","RATE_DAILY","PERIOD"]
[356014445,1741797032204,-189.35435377,0.00021817,2]
[356014446,1741797032213,-1115.76166563,0.000219,3]
[356014447,1741797032223,-215.06064765,0.00021915,2]
[356014448,1741797032233,-387.25965141,0.00021915,2]
[356014449,1741797032245,-64336.84963697,0.00021916,2]
[356014450,1741797032278,-1256.79446506,0.00021916,2]
[356014461,1741797037791,-1000.0,0.00021,21]
[356014462,1741797037801,-279.19597134,0.00021915,2]
[356014463,1741797037811,-500.0,0.00021915,2]
[356014464,1741797037821,-500.0,0.00021915,2]
[356014465,1741797037831,-157.28770518,0.00021915,2]
[356014466,1741797037841,-278335.81483797,0.00021916,2]
[356014467,1741797037852,-194.88,0.00021917,2]
[356014468,1741797037862,-500.0,0.00021917,2]
[356014469,1741797037872,-527.11822206,0.00021917,2]
[356014470,1741797037882,-500.0,0.00021917,2]
[356014471,1741797037892,-500.0,0.00021917,2]
[356014472,1741797037904,-500.0,0.00021917,2]
[356014473,1741797037914,-500.0,0.00021917,2]
[356014474,1741797037924,-500.0,0.00021917,2]
[356014475,1741797037935,-543.98,0.00021917,2]
[356014476,1741797037945,-535.33,0.00021917,2]
[356014477,1741797037955,-500.0,0.00021917,2]
[356014478,1741797037965,-500.0,0.00021917,2]
[356014479,1741797037975,-500.0,0.00021917,2]
[356014482,1741797037985,-500.0,0.00021917,2]
[356014484,1741797037995,-500.0,0.00021917,2]
[356014486,1741797038005,-500.0,0.00021917,2]
[356014488,1741797038015,-500.0,0.00021917,2]
[356014491,1741797038025,-500.0,0.00021917,2]
[356014494,1741797038034,-586.91210862,0.00021917,2]
[356014496,1741797038044,-527.96979986,0.00021917,2]
[356014498,1741797038055,-500.0,0.00021917,2]
[356014501,1741797038075,-500.0,0.00021917,2]
[356014502,1741797038087,-500.0,0.00021917,2]
[356014503,1741797038097,-517.46512177,0.00021917,2]
[356014504,1741797038107,-500.0,0.00021917,2]
[356014505,1741797038118,-500.0,0.00021917,2]
[356014506,1741797038128,-500.0,0.00021917,2]
[356014507,1741797038139,-500.0,0.00021917,2]
[356014508,1741797038152,-674.75,0.00021917,2]
[356014509,1741797038162,-521.81,0.00021917,2]
[356014510,1741797038172,-500.0,0.00021917,2]
[356014511,1741797038183,-750.26,0.00021917,2]
[356014512,1741797038194,-500.0,0.00021917,2]
[356014513,1741797038204,-500.0,0.00021917,2]
[356014514,1741797038214,-500.0,0.00021917,2]
[356014515,1741797038224,-500.0,0.00021917,2]
[356014516,1741797038234,-500.0,0.00021917,2]
[356014517,1741797038245,-500.0,0.00021917,2]
[356014518,1741797038256,-500.0,0.00021917,2]
[356014519,1741797038266,-500.0,0.00021917,2]
[356014520,1741797038276,-500.0,0.00021917,2]
[356014521,1741797038288,-500.0,0.00021917,2]
[356014522,1741797038299,-500.0,0.00021917,2]
[356014523,1741797038309,-500.0,0.00021917,5]
[356014524,1741797038319,-739.08,0.00021917,2]
[356014525,1741797038330,-500.0,0.00021917,2]
[356014526,1741797038341,-500.0,0.00021917,2]
[356014527,1741797038351,-500.0,0.00021917,2]
[356014528,1741797038361,-500.0,0.00021917,2]
[356014529,1741797038371,-536.358,0.00021917,2]
[356014530,1741797038381,-742.89,0.00021917,2]
[356014531,1741797038391,-565.61733997,0.00021917,2]
[356014532,1741797038402,-500.0,0.00021917,2]
[356014533,1741797038412,-711.34,0.00021917,2]
[356014534,1741797038422,-500.0,0.00021917,2]
[356014535,1741797038433,-659.09,0.00021917,2]
[356014536,1741797038443,-500.0,0.00021917,2]
[356014537,1741797038453,-798.26,0.00021917,2]
[356014538,1741797038463,-500.0,0.00021917,2]
[356014539,1741797038473,-1061.6,0.00021917,2]
[356014540,1741797038484,-581.02,0.00021917,2]
[356014541,1741797038494,-500.0,0.00021917,2]
[356014542,1741797038504,-500.0,0.00021917,2]
[356014543,1741797038515,-636.9888253,0.00021917,2]
[356014544,1741797038525,-500.0,0.00021917,2]
[356014545,1741797038535,-500.0,0.00021917,2]
[356014546,1741797038546,-1329.98,0.00021917,2]
[356014547,1741797038557,-500.0,0.00021917,2]
[356014548,1741797038567,-500.0,0.00021917,2]
[356014549,1741797038578,-500.0,0.00021917,2]
[356014550,1741797038588,-644.35,0.00021917,2]
[356014551,1741797038599,-500.0,0.00021917,2]
[356014552,1741797038609,-500.0,0.00021917,2]
[356014553,1741797038619,-500.0,0.00021917,2]
[356014554,1741797038630,-500.0,0.00021917,2]
[356014555,1741797038640,-500.0,0.00021917,2]
[356014556,1741797038651,-1423.84,0.00021917,2]
[356014557,1741797038661,-289.90708089,0.00021917,2]
[356014558,1741797038677,-500.0,0.00021917,2]
[356014559,1741797038687,-500.0,0.00021917,2]
[356014560,1741797038697,-500.0,0.00021917,2]
[356014561,1741797038708,-821.36,0.00021917,2]
[356014562,1741797038718,-500.0,0.00021917,2]
[356014563,1741797038728,-1170.78,0.00021917,2]
[356014564,1741797038739,-500.0,0.00021917,2]
[356014565,1741797038750,-1301.4,0.00021917,2]
[356014566,1741797038760,-500.0,0.00021917,2]
[356014567,1741797038770,-767.74,0.00021917,2]
[356014568,1741797038780,-500.0,0.00021917,2]
[356014569,1741797038790,-500.0,0.00021917,2]
[356014570,1741797038801,-2095.3,0.00021917,2]
[356014571,1741797038811,-500.0,0.00021917,2]
[356014572,1741797038822,-500.0,0.00021917,2]
[356014573,1741797038833,-500.0,0.00021917,2]
[356014574,1741797038843,-500.0,0.00021917,2]
[356014575,1741797038854,-500.0,0.00021917,2]
[356014576,1741797038865,-753.16,0.00021917,2]
[356014577,1741797038875,-549.13,0.00021917,2]
[356014578,1741797038886,-355.85274726,0.00021917,2]
[356014579,1741797038896,-500.0,0.00021917,2]
[356014580,1741797038907,-500.0,0.00021917,2]
[356014581,1741797038918,-959.05,0.00021917,2]
[356014582,1741797038929,-500.0,0.00021917,2]
[356014583,1741797038939,-500.0,0.00021917,2]
[356014584,1741797038950,-1076.07,0.00021917,2]
[356014585,1741797038960,-500.0,0.00021917,2]
[356014586,1741797038970,-229.47796724,0.00021917,2]
[356014587,1741797038980,-500.0,0.00021917,2]
[356014588,1741797038992,-500.0,0.00021917,2]
[356014589,1741797039002,-500.0,0.00021917,2]
[356014590,1741797039012,-500.0,0.00021917,2]
[356014591,1741797039022,-589.65731906,0.00021917,2]
[356014592,1741797039032,-500.0,0.00021917,2]
[356014593,1741797039043,-500.0,0.00021917,2]
[356014594,1741797039052,-500.0,0.00021917,2]
[356014595,1741797039062,-500.0,0.00021917,2]
[356014596,1741797039073,-500.0,0.00021917,2]
[356014597,1741797039083,-500.0,0.00021917,2]
[356014598,1741797039093,-500.0,0.00021917,2]
[356014599,1741797039103,-500.0,0.00021917,2]
[356014600,1741797039114,-503.22,0.00021917,2]
[356014601,1741797039124,-500.0,0.00021917,2]
[356014602,1741797039134,-500.0,0.00021917,2]
[356014603,1741797039145,-500.0,0.00021917,2]
[356014604,1741797039156,-500.0,0.00021917,2]
[356014605,1741797039166,-2546.77,0.00021917,2]
[356014606,1741797039176,-680.01,0.00021917,2]
[356014607,1741797039187,-500.0,0.00021917,2]
[356014608,1741797039198,-500.0,0.00021917,2]
[356014609,1741797039208,-395.20147509,0.00021917,2]
[356014610,1741797039226,-104.79852491,0.00021917,2]
[356014611,1741797039240,-1589.68,0.00021917,2]
[356014612,1741797039250,-715.64,0.00021917,2]
[356014613,1741797039260,-1283.39,0.00021917,2]
[356014614,1741797039270,-586.81,0.00021917,2]
[356014615,1741797039282,-500.0,0.00021917,2]
[356014616,1741797039294,-4835.05,0.00021917,2]
[356014617,1741797039304,-413.85106186,0.00021917,2]
[356014618,1741797039317,-86.14893814,0.00021917,2]
[356014619,1741797039327,-500.0,0.00021917,2]
[356014620,1741797039337,-500.0,0.00021917,2]
[356014621,1741797039348,-863.41,0.00021917,2]
[356014622,1741797039358,-500.0,0.00021917,2]
[356014624,1741797039369,-500.0,0.00021917,2]
[356014626,1741797039379,-651.43,0.00021917,2]
[356014628,1741797039390,-1409.06,0.00021917,2]
[356014629,1741797039400,-581.14234095,0.00021917,2]
[356014630,1741797039411,-500.0,0.00021917,2]
[356014632,1741797039420,-500.0,0.00021917,2]
[356014634,1741797039431,-1742.48,0.00021917,2]
[356014635,1741797039440,-500.0,0.00021917,2]
[356014637,1741797039451,-500.0,0.00021917,2]
[356014640,1741797039461,-562.21,0.00021917,2]
[356014643,1741797039471,-739.98,0.00021917,2]
[356014646,1741797039481,-761.29,0.00021917,2]
[356014649,1741797039493,-500.0,0.00021917,2]
[356014653,1741797039503,-677.78,0.00021917,2]
[356014656,1741797039513,-500.0,0.00021917,2]
[356014659,1741797039523,-500.0,0.00021917,2]
[356014660,1741797039534,-500.0,0.00021917,2]
[356014661,1741797039544,-693.23,0.00021917,2]
[356014662,1741797039554,-742.19,0.00021917,2]
[356014663,1741797039566,-500.0,0.00021917,2]
[356014664,1741797039576,-4.92726658,0.00021917,2]
[356014665,1741797039631,-495.07273342,0.00021917,2]
[356014666,1741797039642,-929.42,0.00021917,2]
[356014667,1741797039653,-794.31,0.00021917,2]
[356014668,1741797039663,-500.0,0.00021917,2]
[356014669,1741797039673,-1102.35,0.00021917,2]
[356014670,1741797039683,-983.93,0.00021917,2]
[356014671,1741797039694,-500.0,0.00021917,2]
[356014672,1741797039704,-500.0,0.00021917,2]
[356014673,1741797039714,-500.0,0.00021917,2]
[356014674,1741797039724,-1047.8,0.00021917,2]
[356014675,1741797039734,-500.0,0.00021917,2]
[356014676,1741797039744,-500.0,0.00021917,2]
[356014677,1741797039754,-22011.53,0.00021917,2]
[356014678,1741797039765,-500.0,0.00021917,2]
[356014679,1741797039775,-500.0,0.00021917,2]
[356014680,1741797039785,-612.15,0.00021917,2]
[356014681,1741797039796,-706.22,0.00021917,2]
[356014682,1741797039806,-952.5,0.00021917,2]
[356014683,1741797039818,-740.43,0.00021917,2]
[356014702,1741797040138,-500.0,0.00021917,2]
[356014704,1741797040149,-3126.39,0.00021917,2]
[356014707,1741797040160,-500.0,0.00021917,2]
[356014709,1741797040171,-500.0,0.00021917,2]
[356014711,1741797040181,-1633.39,0.00021917,2]
[356014713,1741797040192,-10336.51,0.00021917,2]
[356014715,1741797040203,-500.0,0.00021917,2]
[356014717,1741797040213,-939.48,0.00021917,2]
[356014719,1741797040223,-500.0,0.00021917,2]
[356014721,1741797040234,-500.0,0.00021917,2]
[356014722,1741797040246,-500.0,0.00021917,2]
[356014723,1741797040257,-500.0,0.00021917,2]
[356014724,1741797040266,-500.0,0.00021917,2]
[356014725,1741797040277,-822.52,0.00021917,2]
[356014726,1741797040290,-1016.88,0.00021917,2]
[356014727,1741797040300,-1045.83,0.00021917,2]
[356014728,1741797040309,-500.0,0.00021917,2]
[356014729,1741797040320,-500.0,0.00021917,2]
[356014730,1741797040330,-627.07,0.00021917,2]
[356014731,1741797040340,-1934.62,0.00021917,2]
[356014732,1741797040351,-500.0,0.00021917,2]
[356014733,1741797040360,-500.0,0.00021917,2]
[356014734,1741797040370,-500.0,0.00021917,2]
[356014735,1741797040381,-1097.52,0.00021917,2]
[356014736,1741797040391,-526.65,0.00021917,2]
[356014737,1741797040402,-607.7,0.00021917,2]
[356014738,1741797040412,-875.35,0.00021917,2]
[356014739,1741797040422,-524.76329756,0.00021917,2]
[356014740,1741797040433,-500.0,0.00021917,2]
[356014741,1741797040443,-1514.79,0.00021917,2]
[356014742,1741797040454,-2567.32,0.00021917,2]
[356014743,1741797040464,-1000.0,0.00021917,7]
[356014744,1741797040474,-500.0,0.00021917,2]
[356014745,1741797040484,-500.0,0.00021917,2]
[356014746,1741797040494,-787.4,0.00021917,2]
[356014747,1741797040503,-678.62,0.00021917,2]
[356014748,1741797040514,-757.39,0.00021917,2]
[356014749,1741797040523,-1603.38,0.00021917,2]
[356014750,1741797040533,-1918.74,0.00021917,2]
[356014751,1741797040543,-684.08,0.00021917,2]
[356014752,1741797040554,-520.4,0.00021917,2]
[356014753,1741797040564,-1368.91,0.00021917,2]
[356014754,1741797040574,-954.38,0.00021917,2]
[356014755,1741797040583,-500.0,0.00021917,2]
[356014756,1741797040594,-500.0,0.00021917,2]
[356014757,1741797040604,-500.0,0.00021917,2]
[356014758,1741797040614,-500.0,0.00021917,2]
[356014759,1741797040623,-876.38,0.00021917,2]
[356014760,1741797040633,-640.42,0.00021917,2]
[356014761,1741797040642,-638.89,0.00021917,2]
[356014762,1741797040652,-500.0,0.00021917,2]
[356014763,1741797040662,-500.0,0.00021917,2]
[356014764,1741797040671,-500.0,0.00021917,2]
[356014765,1741797040681,-500.0,0.00021917,2]
[356014766,1741797040691,-1509.47,0.00021917,2]
[356014767,1741797040701,-500.0,0.00021917,2]
[356014768,1741797040711,-500.0,0.00021917,2]
[356014769,1741797040721,-500.0,0.00021917,2]
[356014770,1741797040731,-500.0,0.00021917,2]
[356014771,1741797040741,-500.0,0.00021917,2]
[356014772,1741797040751,-1859.87,0.00021917,2]
[356014773,1741797040762,-500.0,0.00021917,2]
[356014774,1741797040772,-500.0,0.00021917,2]
[356014775,1741797040782,-500.0,0.00021917,2]
[356014776,1741797040793,-242.15153346,0.00021917,2]
[356014777,1741797040803,-500.0,0.00021917,2]
[356014778,1741797040813,-500.0,0.00021917,2]
[356014779,1741797040823,-500.0,0.00021917,2]
[356014780,1741797040834,-509.37,0.00021917,2]
[356014781,1741797040844,-1293.8017276,0.00021918,7]
[356014782,1741797040853,-500.43145444,0.00021973,2]
[356014783,1741797040863,-500.23807446,0.00021973,2]
[356014784,1741797040872,-503.43618055,0.00021973,2]
[356014785,1741797040882,-160.48537296,0.00021973,2]
[356014786,1741797040892,-500.0,0.00021973,2]
[356014787,1741797040904,-500.0,0.00021973,2]
[356014788,1741797040914,-160.45323151,0.00021973,2]
[356014789,1741797040924,-500.0,0.00021973,2]
[356014790,1741797040933,-206.18693964,0.00021973,2]
[356014791,1741797040945,-500.0,0.00021973,2]
[356014792,1741797040955,-500.0,0.00021973,2]
[356014793,1741797040965,-510.54681435,0.00021973,2]
[356014794,1741797040975,-498.29380402,0.00021973,2]
[356014795,1741797040984,-500.0,0.00021973,2]
[356014796,1741797040995,-501.51281935,0.00021973,2]
[356014797,1741797041006,-160.0397721,0.00021973,2]
[356014798,1741797041016,-375.85984233,0.00021973,2]
[356014799,1741797041026,-500.0,0.00021973,2]
[356014800,1741797041035,-500.0,0.00021973,2]
[356014801,1741797041045,-160.4360721,0.00021973,2]
[356014802,1741797041055,-500.0,0.00021973,2]
[356014803,1741797041064,-157.54244789,0.00021973,2]
[356014804,1741797041074,-160.43794313,0.00021973,2]
[356014805,1741797041083,-160.39544876,0.00021973,2]
[356014806,1741797041092,-159.43520626,0.00021973,2]
[356014807,1741797041102,-500.0,0.00021973,2]
[356014808,1741797041111,-332.08724457,0.00021973,2]
[356014809,1741797041121,-500.0,0.00021973,2]
[356014810,1741797041131,-500.14221065,0.00021973,2]
[356014811,1741797041140,-500.0,0.00021973,2]
[356014812,1741797041150,-500.0,0.00021973,2]
[356014813,1741797041161,-159.4490704,0.00021973,2]
[356014814,1741797041171,-500.0,0.00021973,2]
[356014815,1741797041180,-634.62346658,0.00021973,2]
[356014816,1741797041189,-500.0,0.00021973,2]
[356014817,1741797041198,-500.0,0.00021973,2]
[356014818,1741797041208,-252.35017178,0.00021973,2]
[356014819,1741797041217,-210.90733146,0.00021973,2]
[356014820,1741797041226,-500.0,0.00021973,2]
[356014821,1741797041236,-500.0,0.00021973,2]
[356014822,1741797041247,-291.23248099,0.00021973,2]
[356014823,1741797041257,-500.0,0.00021973,2]
[356014824,1741797041266,-500.0,0.00021973,2]
[356014825,1741797041275,-528.53709032,0.00021973,2]
[356014826,1741797041286,-500.0,0.00021973,2]
[356014827,1741797041296,-500.0,0.00021973,2]
[356014828,1741797041305,-151.61181444,0.00021973,2]
[356014829,1741797041315,-287.55736333,0.00021973,2]
[356014830,1741797041324,-500.0,0.00021973,2]
[356014831,1741797041335,-500.35366532,0.00021973,2]
[356014832,1741797041344,-500.0,0.00021973,2]
[356014833,1741797041354,-155.80444395,0.00021973,2]
[356014834,1741797041364,-500.0,0.00021973,2]
[356014835,1741797041375,-500.0,0.00022,7]
[356014836,1741797041385,-346.71507097,0.00022,2]
[356014837,1741797041396,-25629.05724229,0.00022,2]
[356014838,1741797041409,-1000.0,0.00022,2]
[356014839,1741797041419,-720.17931274,0.00022002,2]
[356014840,1741797041429,-200.0,0.00022003,2]
[356014841,1741797041439,-5882.08086694,0.00022091,2]
[356014842,1741797041449,-289.6955896,0.000221,2]
[356014843,1741797041459,-500.0,0.00022173,2]
[356014844,1741797041469,-500.0,0.00022173,2]
[356014845,1741797041478,-500.0,0.00022173,2]
[356014846,1741797041487,-500.0,0.00022173,2]
[356014847,1741797041497,-200.81358535,0.00022173,2]
[356014848,1741797041506,-500.0,0.00022173,2]
[356014849,1741797041516,-500.0,0.00022173,2]
[356014850,1741797041526,-608.99559557,0.00022173,2]
[356014851,1741797041535,-225.92834623,0.00022173,2]
[356014852,1741797041545,-500.0,0.00022173,2]
[356014853,1741797041555,-189.8435304,0.00022173,2]
[356014854,1741797041565,-500.0,0.00022173,2]
[356014855,1741797041575,-500.0,0.00022173,2]
[356014856,1741797041585,-500.0,0.00022173,2]
[356014857,1741797041594,-500.0,0.00022173,2]
[356014858,1741797041603,-500.0,0.00022173,2]
[356014859,1741797041613,-500.0,0.00022173,2]
[356014860,1741797041623,-500.0,0.00022173,2]
[356014861,1741797041632,-500.0,0.00022173,2]
[356014862,1741797041642,-500.0,0.00022173,2]
[356014863,1741797041653,-500.0,0.00022173,2]
[356014864,1741797041663,-500.0,0.00022173,2]
[356014865,1741797041672,-500.0,0.00022173,2]
[356014866,1741797041683,-500.0,0.00022173,2]
[356014867,1741797041692,-500.0,0.00022173,2]
[356014868,1741797041702,-500.0,0.00022173,2]
[356014869,1741797041711,-500.0,0.00022173,2]
[356014870,1741797041721,-500.0,0.00022173,2]
[356014871,1741797041730,-469.72807912,0.00022173,2]
[356014872,1741797041740,-500.0,0.00022173,2]
[356014873,1741797041750,-500.0,0.00022173,2]
[356014874,1741797041759,-590.38320223,0.00022173,2]
[356014875,1741797041769,-500.0,0.00022173,2]
[356014876,1741797041779,-500.0,0.00022173,2]
[356014877,1741797041789,-585.86801385,0.00022173,2]
[356014878,1741797041798,-500.0,0.00022173,2]
[356014879,1741797041808,-500.0,0.00022173,2]
[356014880,1741797041818,-500.0,0.00022173,2]
[356014881,1741797041828,-500.0,0.00022173,2]
[356014882,1741797041838,-500.0,0.00022173,2]
[356014883,1741797041847,-999.94,0.0002219,2]
[356014884,1741797041857,-500.0,0.00022191,2]
[356014885,1741797041867,-500.0,0.00022191,2]
[356014886,1741797041877,-500.0,0.00022191,2]
[356014887,1741797041887,-500.0,0.00022191,2]
[356014888,1741797041897,-500.0,0.00022191,2]
[356014889,1741797041907,-500.0,0.00022191,2]
[356014890,1741797041917,-543.98,0.00022191,2]
[356014891,1741797041927,-535.33,0.00022191,2]
[356014892,1741797041936,-500.0,0.00022191,2]
[356014893,1741797041946,-500.0,0.00022191,2]
[356014894,1741797041956,-500.0,0.00022191,2]
[356014895,1741797041966,-500.0,0.00022191,2]
[356014896,1741797041976,-500.0,0.00022191,2]
[356014897,1741797041986,-635.14421015,0.00022191,2]
[356014898,1741797041995,-500.0,0.00022191,2]
[356014899,1741797042005,-500.0,0.00022191,2]
[356014900,1741797042015,-500.0,0.00022191,2]
[356014901,1741797042025,-518.40201494,0.00022191,2]
[356014902,1741797042035,-500.0,0.00022191,2]
[356014903,1741797042045,-500.0,0.00022191,2]
[356014904,1741797042054,-647.60390898,0.00022191,2]
[356014905,1741797042064,-500.0,0.00022191,2]
[356014906,1741797042074,-674.75,0.00022191,2]
[356014907,1741797042084,-521.81,0.00022191,2]
[356014908,1741797042093,-250.61500891,0.00022191,2]
[356014909,1741797042104,-750.26,0.00022191,2]
[356014910,1741797042113,-500.0,0.00022191,2]
[356014911,1741797042123,-500.0,0.00022191,2]
[356014912,1741797042132,-500.0,0.00022191,2]
[356014913,1741797042142,-500.0,0.00022191,2]
[356014914,1741797042152,-500.0,0.00022191,2]
[356014915,1741797042162,-500.0,0.00022191,2]
[356014916,1741797042172,-500.0,0.00022191,5]
[356014917,1741797042181,-739.08,0.00022191,2]
[356014918,1741797042191,-500.0,0.00022191,2]
[356014919,1741797042202,-233.11560173,0.00022191,2]
[356014920,1741797042212,-500.0,0.00022191,2]
[356014921,1741797042222,-500.0,0.00022191,2]
[356014922,1741797042232,-742.89,0.00022191,2]
[356014923,1741797042245,-500.0,0.00022191,2]
[356014924,1741797042257,-711.34,0.00022191,2]
[356014925,1741797042266,-500.0,0.00022191,2]
[356014926,1741797042275,-659.09,0.00022191,2]
[356014927,1741797042286,-500.0,0.00022191,2]
[356014928,1741797042296,-798.26,0.00022191,2]
[356014929,1741797042306,-500.0,0.00022191,2]
[356014930,1741797042315,-1061.6,0.00022191,2]
[356014931,1741797042327,-581.02,0.00022191,2]
[356014932,1741797042336,-500.0,0.00022191,2]
[356014934,1741797042345,-500.0,0.00022191,2]
[356014935,1741797042355,-212.4288886,0.00022191,2]
[356014936,1741797042365,-502.9971439,0.00022191,2]
[356014938,1741797042374,-1329.98,0.00022191,2]
[356014940,1741797042383,-500.0,0.00022191,2]
[356014941,1741797042394,-500.0,0.00022191,2]
[356014942,1741797042403,-500.0,0.00022191,2]
[356014943,1741797042413,-644.35,0.00022191,2]
[356014944,1741797042423,-500.0,0.00022191,2]
[356014945,1741797042432,-500.0,0.00022191,2]
[356014946,1741797042442,-500.0,0.00022191,2]
[356014947,1741797042452,-500.0,0.00022191,2]
[356014948,1741797042462,-500.0,0.00022191,2]
[356014949,1741797042471,-1423.84,0.00022191,2]
[356014950,1741797042481,-500.0,0.00022191,2]
[356014952,1741797042491,-500.0,0.00022191,2]
[356014954,1741797042500,-821.36,0.00022191,2]
[356014955,1741797042510,-500.0,0.00022191,2]
[356014957,1741797042520,-1170.78,0.00022191,2]
[356014959,1741797042531,-500.0,0.00022191,2]
[356014964,1741797042598,-1301.4,0.00022191,2]
[356014966,1741797042607,-500.0,0.00022191,2]
[356014968,1741797042617,-767.74,0.00022191,2]
[356014970,1741797042626,-500.0,0.00022191,2]
[356014973,1741797042636,-2095.3,0.00022191,2]
[356014974,1741797042645,-500.0,0.00022191,2]
[356014976,1741797042656,-753.16,0.00022191,2]
[356014978,1741797042665,-549.13,0.00022191,2]
[356014980,1741797042674,-500.0,0.00022191,2]
[356014982,1741797042684,-959.05,0.00022191,2]
[356014985,1741797042694,-500.0,0.00022191,2]
[356014987,1741797042703,-500.0,0.00022191,2]
[356014989,1741797042713,-1076.07,0.00022191,2]
[356014990,1741797042723,-500.0,0.00022191,2]
[356014991,1741797042732,-500.0,0.00022191,2]
[356014992,1741797042741,-500.0,0.00022191,2]
[356014993,1741797042750,-500.0,0.00022191,2]
[356014994,1741797042760,-500.0,0.00022191,2]
[356014995,1741797042770,-500.0,0.00022191,2]
[356014996,1741797042779,-500.0,0.00022191,2]
[356014997,1741797042788,-500.0,0.00022191,2]
[356014998,1741797042798,-500.0,0.00022191,2]
[356014999,1741797042807,-500.0,0.00022191,2]
[356015000,1741797042817,-500.0,0.00022191,2]
[356015001,1741797042826,-500.0,0.00022191,2]
[356015002,1741797042836,-503.22,0.00022191,2]
[356015003,1741797042845,-500.0,0.00022191,2]
[356015004,1741797042854,-500.0,0.00022191,2]
[356015005,1741797042864,-500.0,0.00022191,2]
[356015006,1741797042874,-2546.77,0.00022191,2]
[356015007,1741797042883,-680.01,0.00022191,2]
[356015008,1741797042892,-500.0,0.00022191,2]
[356015009,1741797042902,-500.0,0.00022191,2]
[356015010,1741797042912,-500.0,0.00022191,2]
[356015011,1741797042921,-1589.68,0.00022191,2]
[356015012,1741797042930,-715.64,0.00022191,2]
[356015013,1741797042940,-1283.39,0.00022191,2]
[356015014,1741797042949,-586.81,0.00022191,2]
[356015015,1741797042958,-500.0,0.00022191,2]
[356015016,1741797042968,-4835.05,0.00022191,2]
[356015017,1741797042977,-500.0,0.00022191,2]
[356015018,1741797042987,-500.0,0.00022191,2]
[356015019,1741797042996,-500.0,0.00022191,2]
[356015020,1741797043006,-863.41,0.00022191,2]
[356015021,1741797043016,-500.0,0.00022191,2]
[356015022,1741797043026,-500.0,0.00022191,2]
[356015023,1741797043035,-651.43,0.00022191,2]
[356015024,1741797043044,-1409.06,0.00022191,2]
[356015025,1741797043054,-500.0,0.00022191,2]
[356015026,1741797043063,-500.0,0.00022191,2]
[356015027,1741797043073,-1742.48,0.00022191,2]
[356015028,1741797043082,-500.0,0.00022191,2]
[356015029,1741797043092,-500.0,0.00022191,2]
[356015030,1741797043101,-562.21,0.00022191,2]
[356015031,1741797043110,-739.98,0.00022191,2]
[356015032,1741797043119,-761.29,0.00022191,2]
[356015033,1741797043128,-500.0,0.00022191,2]
[356015034,1741797043138,-677.78,0.00022191,2]
[356015035,1741797043148,-500.0,0.00022191,2]
[356015036,1741797043159,-500.0,0.00022191,2]
[356015037,1741797043168,-500.0,0.00022191,2]
[356015039,1741797043178,-693.23,0.00022191,2]
[356015041,1741797043187,-742.19,0.00022191,2]
[356015043,1741797043197,-500.0,0.00022191,2]